[Event "HUN-chT Youth-Children 2018"]
[Site "Zalakaros"]
[Date "2018.07.26"]
[Round "1"]
[White "Gombocz, Zsofia"]
[Black "Foldes, Marton Gabor"]
[Result "1/2-1/2"]
[ECO "B30"]
[WhiteElo "1996"]
[BlackElo "1590"]
[Annotator "NA"]
[PlyCount "106"]
[EventDate "2018.07.26"]
[EventType "team-tourn"]
[EventCountry "HUN"]
[SourceTitle "playchess.com"]
[Source "ChessBase"]
[SourceQuality "1"]
[TimeControl "5400+30"]

1. e4 {[%emt 0:00:00]} c5 {[%emt 0:00:00]} 2. Nf3 {[%emt 0:00:00]} Nc6 {[%emt 0:00:00]} 3. Bb5 {[%emt 0:00:00]} e6 {[%emt 0:00:17]} 4. Nc3 {[%emt 0:02:43]} Nd4 {[%emt 0:02:12]} 5. Bc4 {[%emt 0:05:04]} Ne7 {[%emt 0:03:18]} 6. Nxd4 {[%emt 0:09:36]} cxd4 {[%emt 0:00:36]} 7. Ne2 {[%emt 0:00:27]} Nc6 {[%emt 0:09:27]} 8. d3 {[%emt 0:02:23]} d5 {[%emt 0:04:24]} 9. exd5 {[%emt 0:05:29]} exd5 {[%emt 0:01:29]} 10. Bb3 {[%emt 0:00:10]} Be6 {[%emt 0:05:34]} 11. O-O {[%emt 0:04:35]} Bd6 {[%emt 0:01:46]} 12. Nf4 {[%emt 0:05:59]} O-O {[%emt 0:05:21]} 13. h3 {[%emt 0:11:35]} Qf6 {[%emt 0:07:13]} 14. Nxe6 {[%emt 0:17:50]} fxe6 {[%emt 0:01:52]} 15. Bd2 {[%emt 0:01:40]} Ne7 {[%emt 0:12:55]} 16. Qg4 {[%emt 0:06:06]} h6 {[%emt 0:08:21]} 17. c3 {[%emt 0:05:33]} Bc5 {[%emt 0:12:37]} 18. c4 {[%emt 0:04:48]} Rad8 {[%emt 0:03:44]} 19. Rae1 {[%emt 0:03:00]} Rd6 {[%emt 0:05:07]} 20. g3 {[%emt 0:04:16]} Ng6 {[%emt 0:02:03]} 21. f4 {[%emt 0:02:06]} a6 {[%emt 0:01:56]} 22. h4 {[%emt 0:01:37]} Ne7 {[%emt 0:02:22]} 23. a4 {[%emt 0:00:59]} Nf5 {[%emt 0:00:49]} 24. cxd5 {[%emt 0:02:15]} exd5 {[%emt 0:02:07]} 25. Re5 {[%emt 0:01:01]} Ne3 {[%emt 0:01:57]} 26. Bxe3 {[%emt 0:00:15]} dxe3 {[%emt 0:00:06]} 27. Rxd5 {[%emt 0:00:19]} Rxd5 {[%emt 0:00:44]} 28. Bxd5+ {[%emt 0:00:02]} Kh8 {[%emt 0:00:31]} 29. Qe2 {[%emt 0:00:09]} b6 {[%emt 0:01:44]} 30. Rc1 {[%emt 0:01:15]} Qd4 {[%emt 0:01:12]} 31. Be4 {[%emt 0:01:25]} Qxa4 {[%emt 0:00:44]} 32. Kg2 {[%emt 0:00:23]} Qd4 {[%emt 0:01:08]} 33. Rc4 {[%emt 0:01:07]} Qd6 {[%emt 0:00:51]} 34. b4 {[%emt 0:01:03]} Bxb4 {[%emt 0:01:06]} 35. Qxe3 {[%emt 0:00:10]} a5 {[%emt 0:00:37]} 36. Rc6 {[%emt 0:00:09]} Bc5 {[%emt 0:00:11]} 37. Qf3 {[%emt 0:01:06]} Qe7 {[%emt 0:00:46]} 38. Qg4 {[%emt 0:00:16]} Qf7 {[%emt 0:00:34]} 39. Qf3 {[%emt 0:01:55]} Rd8 {[%emt 0:01:01]} 40. f5 {[%emt 0:00:23]} Bd4 {[%emt 0:00:42]} 41. g4 {[%emt 0:00:33]} a4 {[%emt 0:00:22]} 42. g5 {[%emt 0:00:14]} Qa2+ {[%emt 0:00:36]} 43. Kh3 {[%emt 0:00:36]} Be5 {[%emt 0:00:37]} 44. gxh6 {[%emt 0:00:33]} Qh2+ {[%emt 0:00:23]} 45. Kg4 {[%emt 0:00:11]} Bf6 {[%emt 0:00:16]} 46. hxg7+ {[%emt 0:00:51]} Kxg7 {[%emt 0:00:45]} 47. Qg3 {[%emt 0:00:18]} Qxg3+ {[%emt 0:00:32]} 48. Kxg3 {[%emt 0:00:02]} a3 {[%emt 0:00:19]} 49. Rc7+ {[%emt 0:00:12]} Kh8 {[%emt 0:00:26]} 50. Ra7 {[%emt 0:00:22]} Bb2 {[%emt 0:00:23]} 51. Kg4 {[%emt 0:00:16]} b5 {[%emt 0:00:28]} 52. Kg5 {[%emt 0:00:44]} b4 {[%emt 0:00:33]} 53. f6 {[%emt 0:01:13]} b3 {[%emt 0:00:23]} 1/2-1/2

[Event "HUN-chT Youth-Children 2018"]
[Site "Zalakaros"]
[Date "2018.07.26"]
[Round "1"]
[White "Balogh, Marton"]
[Black "Bohus, Adam"]
[Result "0-1"]
[ECO "D00"]
[WhiteElo "1973"]
[BlackElo "2246"]
[Annotator "NA"]
[PlyCount "56"]
[EventDate "2018.07.26"]
[EventType "team-tourn"]
[EventCountry "HUN"]
[SourceTitle "playchess.com"]
[Source "ChessBase"]
[SourceQuality "1"]
[TimeControl "5400+30"]

1. d4 {[%emt 0:00:00]} d5 {[%emt 0:00:00]} 2. Bf4 {[%emt 0:00:11]} Nf6 {[%emt 0:00:35]} 3. e3 {[%emt 0:00:22]} c5 {[%emt 0:07:18]} 4. c3 {[%emt 0:01:16]} Nc6 {[%emt 0:00:51]} 5. Nd2 {[%emt 0:00:44]} e6 {[%emt 0:03:21]} 6. Ngf3 {[%emt 0:00:30]} cxd4 {[%emt 0:01:01]} 7. exd4 {[%emt 0:00:17]} Nh5 {[%emt 0:01:16]} 8. Bg5 {[%emt 0:01:18]} f6 {[%emt 0:02:26]} 9. Bh4 {[%emt 0:02:25]} Be7 {[%emt 0:08:10]} 10. Be2 {[%emt 0:39:38]} Nf4 {[%emt 0:09:05]} 11. Bg3 {[%emt 0:01:40]} Nh5 {[%emt 0:12:09]} 12. Qc2 {[%emt 0:03:56]} g6 {[%emt 0:09:00]} 13. Bd3 {[%emt 0:07:58]} Bd7 {[%emt 0:12:30]} 14. Rc1 {[%emt 0:05:28]} O-O {[%emt 0:02:44]} 15. O-O {[%emt 0:01:52]} Kg7 {[%emt 0:04:31]} 16. Rfe1 {[%emt 0:05:37]} Rc8 {[%emt 0:01:37]} 17. Qb1 {[%emt 0:00:42]} Nxg3 {[%emt 0:00:45]} 18. hxg3 {[%emt 0:02:21]} Bd6 {[%emt 0:03:41]} 19. Nh4 {[%emt 0:02:11]} g5 {[%emt 0:06:19]} 20. Nhf3 {[%emt 0:11:34]} g4 {[%emt 0:00:09]} 21. Nh2 {[%emt 0:02:56]} f5 {[%emt 0:00:07]} 22. Ndf1 {[%emt 0:02:38]} h5 {[%emt 0:04:30]} 23. Ne3 {[%emt 0:03:56]} h4 {[%emt 0:01:56]} 24. gxh4 {[%emt 0:01:41]} Bxh2+ {[%emt 0:01:22]} 25. Kxh2 {[%emt 0:00:10]} Qxh4+ {[%emt 0:00:19]} 26. Kg1 {[%emt 0:00:04]} f4 {[%emt 0:01:25]} 27. Nd1 {[%emt 0:00:46]} Rh8 {[%emt 0:00:16]} 28. Kf1 {[%emt 0:00:25]} f3 {[%emt 0:00:09]} 0-1

[Event "HUN-chT Youth-Children 2018"]
[Site "Zalakaros"]
[Date "2018.07.26"]
[Round "1"]
[White "Birovecz, Ben Jordan"]
[Black "Kovacsy, Barnabas"]
[Result "0-1"]
[ECO "D97"]
[WhiteElo "1925"]
[BlackElo "2174"]
[Annotator "NA"]
[PlyCount "80"]
[EventDate "2018.07.26"]
[EventType "team-tourn"]
[EventCountry "HUN"]
[SourceTitle "playchess.com"]
[Source "ChessBase"]
[SourceQuality "1"]
[TimeControl "5400+30"]

1. d4 {[%emt 0:00:00]} Nf6 {[%emt 0:00:00]} 2. c4 {[%emt 0:00:00]} g6 {[%emt 0:00:00]} 3. Nc3 {[%emt 0:00:00]} d5 {[%emt 0:00:00]} 4. Nf3 {[%emt 0:00:00]} Bg7 {[%emt 0:00:00]} 5. Qb3 {[%emt 0:00:03]} dxc4 {[%emt 0:00:00]} 6. Qxc4 {[%emt 0:00:06]} O-O {[%emt 0:00:03]} 7. e4 {[%emt 0:00:06]} Nc6 {[%emt 0:00:04]} 8. Be2 {[%emt 0:02:35]} Bg4 {[%emt 0:01:20]} 9. Be3 {[%emt 0:00:53]} Bxf3 {[%emt 0:00:18]} 10. Bxf3 {[%emt 0:04:38]} e5 {[%emt 0:00:14]} 11. d5 {[%emt 0:01:06]} Nd4 {[%emt 0:00:05]} 12. O-O-O {[%emt 0:16:25]} a6 {[%emt 0:06:18]} 13. Kb1 {[%emt 0:08:06]} b5 {[%emt 0:02:39]} 14. Qd3 {[%emt 0:01:30]} Nxf3 {[%emt 0:01:26]} 15. gxf3 {[%emt 0:00:08]} Qd6 {[%emt 0:00:21]} 16. Ne2 {[%emt 0:06:48]} Rfc8 {[%emt 0:08:35]} 17. Qc2 {[%emt 0:11:59]} c5 {[%emt 0:03:45]} 18. dxc6 {[%emt 0:00:20]} Qe6 {[%emt 0:04:17]} 19. Rc1 {[%emt 0:05:04]} Rab8 {[%emt 0:04:44]} 20. Rhd1 {[%emt 0:15:22]} Rc7 {[%emt 0:04:36]} 21. Rd3 {[%emt 0:06:37]} Ne8 {[%emt 0:04:29]} 22. f4 {[%emt 0:06:08]} Nd6 {[%emt 0:03:23]} 23. fxe5 {[%emt 0:03:37]} Nc4 {[%emt 0:05:11]} 24. Qd1 {[%emt 0:03:04]} Re8 {[%emt 0:08:07]} 25. f4 {[%emt 0:03:22]} Qxc6 {[%emt 0:03:01]} 26. Nc3 {[%emt 0:04:16]} Nxe3 {[%emt 0:01:19]} 27. Rxe3 {[%emt 0:00:13]} Rec8 {[%emt 0:00:29]} 28. Re1 {[%emt 0:00:49]} Qb6 {[%emt 0:01:54]} 29. Qd2 {[%emt 0:00:24]} Qa5 {[%emt 0:01:46]} 30. Qe3 {[%emt 0:00:44]} Qb4 {[%emt 0:02:27]} 31. Nd5 {[%emt 0:00:28]} Rxc1+ {[%emt 0:00:03]} 32. Rxc1 {[%emt 0:00:13]} Rxc1+ {[%emt 0:00:07]} 33. Kxc1 {[%emt 0:00:17]} Qc4+ {[%emt 0:00:35]} 34. Kb1 {[%emt 0:00:57]} Bf8 {[%emt 0:02:28]} 35. Nf6+ {[%emt 0:00:19]} Kg7 {[%emt 0:00:14]} 36. b3 {[%emt 0:00:48]} Qf1+ {[%emt 0:00:32]} 37. Qc1 {[%emt 0:00:28]} Qd3+ {[%emt 0:00:31]} 38. Qc2 {[%emt 0:00:24]} Qf1+ {[%emt 0:00:30]} 39. Qc1 {[%emt 0:00:01]} Qd3+ {[%emt 0:00:41]} 40. Qc2 {[%emt 0:01:09]} Qf1+ {[%emt 0:03:37]} 0-1

[Event "HUN-chT Youth-Children 2018"]
[Site "Zalakaros"]
[Date "2018.07.26"]
[Round "1"]
[White "Bako, Martin"]
[Black "Margl, Roland"]
[Result "0-1"]
[ECO "D50"]
[WhiteElo "1852"]
[BlackElo "2188"]
[Annotator "NA"]
[PlyCount "64"]
[EventDate "2018.07.26"]
[EventType "team-tourn"]
[EventCountry "HUN"]
[SourceTitle "playchess.com"]
[Source "ChessBase"]
[SourceQuality "1"]
[TimeControl "5400+30"]

1. d4 {[%emt 0:00:00]} d5 {[%emt 0:00:00]} 2. c4 {[%emt 0:00:00]} e6 {[%emt 0:00:00]} 3. Nc3 {[%emt 0:00:11]} Nf6 {[%emt 0:00:00]} 4. Nf3 {[%emt 0:01:02]} c5 {[%emt 0:00:00]} 5. Bg5 {[%emt 0:05:16]} cxd4 {[%emt 0:00:32]} 6. Qxd4 {[%emt 0:01:39]} Nc6 {[%emt 0:00:27]} 7. Bxf6 {[%emt 0:08:18]} gxf6 {[%emt 0:00:29]} 8. Qd2 {[%emt 0:01:23]} d4 {[%emt 0:00:22]} 9. e3 {[%emt 0:08:41]} dxc3 {[%emt 0:00:13]} 10. Qxd8+ {[%emt 0:00:26]} Kxd8 {[%emt 0:01:14]} 11. bxc3 {[%emt 0:00:31]} Kc7 {[%emt 0:00:17]} 12. Bd3 {[%emt 0:01:59]} Ne5 {[%emt 0:01:18]} 13. Nxe5 {[%emt 0:01:04]} fxe5 {[%emt 0:00:06]} 14. Ke2 {[%emt 0:00:42]} Bd7 {[%emt 0:00:16]} 15. f3 {[%emt 0:01:01]} Bc6 {[%emt 0:00:31]} 16. e4 {[%emt 0:01:49]} Bc5 {[%emt 0:00:17]} 17. g4 {[%emt 0:01:34]} h5 {[%emt 0:01:21]} 18. h3 {[%emt 0:01:12]} Rag8 {[%emt 0:00:33]} 19. Raf1 {[%emt 0:02:14]} Rh7 {[%emt 0:01:05]} 20. Bc2 {[%emt 0:08:11]} Be8 {[%emt 0:00:50]} 21. Re1 {[%emt 0:01:20]} hxg4 {[%emt 0:00:41]} 22. hxg4 {[%emt 0:00:55]} Rgh8 {[%emt 0:00:05]} 23. Rxh7 {[%emt 0:02:27]} Rxh7 {[%emt 0:00:01]} 24. Kd3 {[%emt 0:01:32]} Rh2 {[%emt 0:00:29]} 25. a4 {[%emt 0:00:44]} Bf2 {[%emt 0:05:16]} 26. Ra1 {[%emt 0:02:47]} Bg3 {[%emt 0:00:15]} 27. Bd1 {[%emt 0:00:31]} Bf4 {[%emt 0:00:38]} 28. Be2 {[%emt 0:02:23]} a5 {[%emt 0:00:24]} 29. Ra2 {[%emt 0:02:21]} Kd6 {[%emt 0:01:03]} 30. Ra1 {[%emt 0:02:44]} Kc5 {[%emt 0:00:08]} 31. Ra2 {[%emt 0:02:10]} b6 {[%emt 0:00:05]} 32. Ra1 {[%emt 0:11:39]} Bc6 {[%emt 0:00:16]} 0-1

[Event "HUN-chT Youth-Children 2018"]
[Site "Zalakaros"]
[Date "2018.07.26"]
[Round "1"]
[White "Demjen, Mark"]
[Black "Forgacs, Attila Jr."]
[Result "0-1"]
[ECO "C74"]
[WhiteElo "1747"]
[BlackElo "1911"]
[Annotator "NA"]
[PlyCount "108"]
[EventDate "2018.07.26"]
[EventType "team-tourn"]
[EventCountry "HUN"]
[SourceTitle "playchess.com"]
[Source "ChessBase"]
[SourceQuality "1"]
[TimeControl "5400+30"]

1. e4 {[%emt 0:00:00]} e5 {[%emt 0:00:00]} 2. Nf3 {[%emt 0:00:14]} Nc6 {[%emt 0:00:00]} 3. Bb5 {[%emt 0:00:17]} a6 {[%emt 0:00:01]} 4. Ba4 {[%emt 0:00:06]} d6 {[%emt 0:00:08]} 5. c3 {[%emt 0:01:17]} f5 {[%emt 0:00:15]} 6. exf5 {[%emt 0:00:35]} Bxf5 {[%emt 0:00:09]} 7. O-O {[%emt 0:00:17]} Bd3 {[%emt 0:00:21]} 8. Re1 {[%emt 0:00:55]} Be7 {[%emt 0:00:31]} 9. Qb3 {[%emt 0:06:37]} b5 {[%emt 0:00:19]} 10. Qd5 {[%emt 0:00:50]} Qd7 {[%emt 0:00:14]} 11. Qxd3 {[%emt 0:00:28]} bxa4 {[%emt 0:00:09]} 12. Qc2 {[%emt 0:00:09]} Nf6 {[%emt 0:00:40]} 13. d3 {[%emt 0:02:13]} O-O {[%emt 0:00:37]} 14. Nbd2 {[%emt 0:00:17]} Rad8 {[%emt 0:08:25]} 15. Qxa4 {[%emt 0:12:54]} Nh5 {[%emt 0:19:26]} 16. Nf1 {[%emt 0:06:40]} Rf7 {[%emt 0:17:04]} 17. Ng3 {[%emt 0:12:25]} Nxg3 {[%emt 0:01:35]} 18. hxg3 {[%emt 0:06:07]} Rdf8 {[%emt 0:07:23]} 19. Be3 d5 {[%emt 0:25:57]} 20. Rad1 {[%emt 0:24:10]} a5 21. Re2 {[%emt 0:09:42]} Qe8 {[%emt 0:12:02]} 22. Qb3 {[%emt 0:01:53]} Qd7 {[%emt 0:01:04]} 23. d4 {[%emt 0:01:40]} Rb8 {[%emt 0:01:59]} 24. Nxe5 {[%emt 0:06:41]} Qf5 {[%emt 0:02:02]} 25. Qxd5 Nxe5 {[%emt 0:00:17]} 26. Qxe5 {[%emt 0:03:18]} Qd7 {[%emt 0:01:04]} 27. Bf4 {[%emt 0:01:20]} Bd6 {[%emt 0:00:23]} 28. Qe3 {[%emt 0:00:55]} Bxf4 {[%emt 0:00:26]} 29. gxf4 {[%emt 0:00:10]} Rbf8 {[%emt 0:00:34]} 30. g3 {[%emt 0:01:33]} Qg4 31. Rde1 {[%emt 0:00:51]} Rxf4 {[%emt 0:01:00]} 32. Qe6+ {[%emt 0:00:29]} Qxe6 {[%emt 0:00:06]} 33. Rxe6 {[%emt 0:00:04]} Rxf2 {[%emt 0:00:15]} 34. R6e2 {[%emt 0:00:27]} R2f3 {[%emt 0:01:03]} 35. Kg2 {[%emt 0:00:41]} R3f7 {[%emt 0:00:50]} 36. Rd1 {[%emt 0:00:59]} Rd8 {[%emt 0:00:53]} 37. Rd3 {[%emt 0:00:27]} Rfd7 {[%emt 0:00:23]} 38. Rde3 {[%emt 0:00:20]} Kf7 {[%emt 0:00:33]} 39. Rf2+ {[%emt 0:00:30]} Kg8 {[%emt 0:00:16]} 40. Re5 {[%emt 0:00:20]} Ra8 {[%emt 0:00:34]} 41. Rff5 {[%emt 0:00:48]} a4 {[%emt 0:00:28]} 42. Ra5 {[%emt 0:00:09]} Rxa5 {[%emt 0:00:27]} 43. Rxa5 {[%emt 0:00:08]} Re7 {[%emt 0:00:14]} 44. Kf3 {[%emt 0:01:01]} Rf7+ {[%emt 0:00:08]} 45. Ke3 {[%emt 0:00:10]} Re7+ {[%emt 0:00:55]} 46. Kd3 {[%emt 0:00:07]} Re1 {[%emt 0:00:40]} 47. Rxa4 {[%emt 0:01:20]} Rg1 {[%emt 0:00:20]} 48. Ra7 {[%emt 0:00:17]} Rxg3+ {[%emt 0:00:17]} 49. Ke4 {[%emt 0:00:29]} h5 {[%emt 0:00:56]} 50. Rxc7 {[%emt 0:00:52]} h4 {[%emt 0:00:36]} 51. Rc5 {[%emt 0:00:14]} g6 {[%emt 0:00:46]} 52. Kf4 {[%emt 0:01:01]} g5+ {[%emt 0:00:20]} 53. Kf5 {[%emt 0:00:27]} h3 {[%emt 0:00:33]} 54. Kg6 {[%emt 0:00:11]} Kf8 0-1

[Event "HUN-chT Youth-Children 2018"]
[Site "Zalakaros"]
[Date "2018.07.26"]
[Round "1"]
[White "Megyaszai, Balazs"]
[Black "Szamko, Hanna"]
[Result "1-0"]
[ECO "C44"]
[WhiteElo "1710"]
[BlackElo "1327"]
[Annotator "NA"]
[PlyCount "109"]
[EventDate "2018.07.26"]
[EventType "team-tourn"]
[EventCountry "HUN"]
[SourceTitle "playchess.com"]
[Source "ChessBase"]
[SourceQuality "1"]
[TimeControl "5400+30"]

1. e4 {[%emt 0:00:00]} e5 {[%emt 0:00:00]} 2. Nf3 {[%emt 0:00:31]} Nc6 {[%emt 0:00:12]} 3. d4 {[%emt 0:00:50]} exd4 {[%emt 0:00:32]} 4. Bc4 {[%emt 0:01:09]} Bb4+ {[%emt 0:00:59]} 5. c3 {[%emt 0:00:56]} dxc3 {[%emt 0:00:18]} 6. O-O {[%emt 0:01:10]} Nge7 {[%emt 0:00:22]} 7. a3 {[%emt 0:00:48]} cxb2 {[%emt 0:00:46]} 8. Bxb2 {[%emt 0:00:15]} Bc5 {[%emt 0:00:25]} 9. Bxg7 {[%emt 0:01:29]} Rg8 {[%emt 0:00:36]} 10. Bb2 {[%emt 0:02:54]} d6 {[%emt 0:01:25]} 11. Qb3 {[%emt 0:02:38]} Be6 {[%emt 0:01:45]} 12. Bxe6 {[%emt 0:01:56]} fxe6 {[%emt 0:00:14]} 13. Qxe6 {[%emt 0:02:17]} Qd7 {[%emt 0:00:42]} 14. Qb3 {[%emt 0:03:05]} O-O-O {[%emt 0:00:58]} 15. Nbd2 {[%emt 0:07:44]} d5 {[%emt 0:01:29]} 16. Rac1 {[%emt 0:11:13]} Bb6 {[%emt 0:03:11]} 17. e5 {[%emt 0:10:39]} d4 {[%emt 0:03:51]} 18. Kh1 {[%emt 0:06:52]} Qd5 {[%emt 0:02:09]} 19. Qxd5 {[%emt 0:02:05]} Nxd5 {[%emt 0:00:42]} 20. Nc4 {[%emt 0:01:27]} Nf4 {[%emt 0:02:24]} 21. Nxb6+ {[%emt 0:02:58]} axb6 {[%emt 0:00:21]} 22. g3 {[%emt 0:01:35]} Nd3 {[%emt 0:00:17]} 23. Rc2 {[%emt 0:02:04]} Ndxe5 {[%emt 0:01:21]} 24. Nxe5 {[%emt 0:03:03]} Nxe5 {[%emt 0:00:36]} 25. Re2 {[%emt 0:06:07]} Nc6 {[%emt 0:02:13]} 26. Rd2 {[%emt 0:02:32]} Rg5 {[%emt 0:04:00]} 27. Rfd1 {[%emt 0:02:48]} Ra5 {[%emt 0:00:59]} 28. f4 {[%emt 0:01:01]} Rd6 {[%emt 0:01:18]} 29. Kg2 {[%emt 0:01:17]} Kd7 {[%emt 0:00:43]} 30. Kf3 {[%emt 0:02:03]} Ra4 {[%emt 0:03:01]} 31. g4 {[%emt 0:02:34]} Na5 {[%emt 0:01:27]} 32. Rxd4 {[%emt 0:01:46]} Raxd4 {[%emt 0:00:39]} 33. Rxd4 {[%emt 0:00:10]} Rxd4 {[%emt 0:00:17]} 34. Bxd4 {[%emt 0:00:08]} c5 {[%emt 0:00:33]} 35. Bb2 {[%emt 0:00:59]} Nc4 {[%emt 0:01:20]} 36. Bc1 {[%emt 0:00:23]} Ke6 {[%emt 0:00:07]} 37. Ke4 {[%emt 0:01:18]} Nd6+ {[%emt 0:00:43]} 38. Kd3 {[%emt 0:01:12]} Kd5 {[%emt 0:00:42]} 39. f5 {[%emt 0:02:00]} Ne4 {[%emt 0:01:11]} 40. g5 {[%emt 0:00:40]} Nd6 {[%emt 0:00:19]} 41. f6 {[%emt 0:05:18]} Ke6 {[%emt 0:00:46]} 42. Bf4 {[%emt 0:01:03]} Nc8 {[%emt 0:00:49]} 43. Kc4 {[%emt 0:01:40]} Nd6+ {[%emt 0:00:47]} 44. Bxd6 {[%emt 0:00:37]} Kxd6 {[%emt 0:00:09]} 45. Kb5 {[%emt 0:00:13]} Ke6 {[%emt 0:00:23]} 46. h4 {[%emt 0:00:08]} Kf7 {[%emt 0:00:39]} 47. Kc4 {[%emt 0:00:16]} Kg6 {[%emt 0:00:51]} 48. Kd5 {[%emt 0:00:19]} Kf7 {[%emt 0:00:35]} 49. a4 {[%emt 0:00:09]} Kf8 {[%emt 0:00:42]} 50. h5 {[%emt 0:05:31]} Kf7 {[%emt 0:01:01]} 51. h6 {[%emt 0:00:27]} Kg6 {[%emt 0:01:36]} 52. Ke6 {[%emt 0:00:13]} Kxg5 {[%emt 0:01:17]} 53. f7 {[%emt 0:00:06]} Kxh6 {[%emt 0:00:07]} 54. f8=Q+ {[%emt 0:00:07]} Kg5 {[%emt 0:00:13]} 55. Qf5+ {[%emt 0:00:40]} 1-0

[Event "HUN-chT Youth-Children 2018"]
[Site "Zalakaros"]
[Date "2018.07.26"]
[Round "1"]
[White "Kiss, Eniko"]
[Black "Pogany, Dorka"]
[Result "1/2-1/2"]
[ECO "B00"]
[WhiteElo "1697"]
[BlackElo "1350"]
[Annotator "NA"]
[PlyCount "37"]
[EventDate "2018.07.26"]
[EventType "team-tourn"]
[EventCountry "HUN"]
[SourceTitle "playchess.com"]
[Source "ChessBase"]
[SourceQuality "1"]
[TimeControl "5400+30"]

1. e4 {[%emt 0:00:00]} b6 {[%emt 0:00:00]} 2. d4 {[%emt 0:00:00]} Bb7 {[%emt 0:00:00]} 3. Nc3 {[%emt 0:00:12]} e6 {[%emt 0:00:27]} 4. Bd3 {[%emt 0:05:01]} Nf6 {[%emt 0:01:22]} 5. Nf3 {[%emt 0:01:30]} Bb4 {[%emt 0:01:04]} 6. Qe2 {[%emt 0:11:29]} d5 {[%emt 0:12:55]} 7. exd5 Nxd5 {[%emt 0:02:04]} 8. Bd2 {[%emt 0:06:22]} Bxc3 {[%emt 0:02:03]} 9. bxc3 {[%emt 0:01:18]} Nd7 {[%emt 0:09:04]} 10. O-O {[%emt 0:07:23]} h6 {[%emt 0:02:44]} 11. c4 {[%emt 0:05:07]} Ne7 {[%emt 0:02:17]} 12. Rfe1 {[%emt 0:02:23]} c6 {[%emt 0:02:31]} 13. Bf4 {[%emt 0:38:57]} O-O {[%emt 0:52:02]} 14. Nh4 Nd5 15. Qg4 g5 16. Qe2 N7f6 17. Qe5 Ne7 18. Be3 Nc8 19. Bxg5 1/2-1/2

[Event "HUN-chT Youth-Children 2018"]
[Site "Zalakaros"]
[Date "2018.07.26"]
[Round "1"]
[White "Laszlo, Csaba"]
[Black "Ugroczky, Peter"]
[Result "1/2-1/2"]
[ECO "B56"]
[WhiteElo "1694"]
[BlackElo "2234"]
[Annotator "NA"]
[PlyCount "90"]
[EventDate "2018.07.26"]
[EventType "team-tourn"]
[EventCountry "HUN"]
[SourceTitle "playchess.com"]
[Source "ChessBase"]
[SourceQuality "1"]
[TimeControl "5400+30"]

1. e4 {[%emt 0:00:00]} c5 {[%emt 0:00:00]} 2. Nf3 {[%emt 0:00:00]} d6 {[%emt 0:00:00]} 3. d4 {[%emt 0:00:00]} cxd4 {[%emt 0:00:00]} 4. Nxd4 {[%emt 0:00:00]} Nf6 {[%emt 0:00:00]} 5. Nc3 {[%emt 0:00:08]} Nc6 {[%emt 0:00:00]} 6. f3 {[%emt 0:00:24]} e5 {[%emt 0:00:58]} 7. Nb3 {[%emt 0:00:51]} Be6 {[%emt 0:02:49]} 8. Bg5 {[%emt 0:13:31]} Be7 {[%emt 0:04:57]} 9. Bxf6 {[%emt 0:02:46]} gxf6 {[%emt 0:01:35]} 10. Nd5 {[%emt 0:07:54]} a5 {[%emt 0:03:28]} 11. c3 {[%emt 0:04:43]} a4 {[%emt 0:01:16]} 12. Nxe7 {[%emt 0:00:30]} Qxe7 {[%emt 0:01:56]} 13. Nd2 {[%emt 0:00:46]} f5 {[%emt 0:01:57]} 14. exf5 {[%emt 0:08:01]} Bxf5 {[%emt 0:00:26]} 15. Nc4 {[%emt 0:03:16]} Rd8 {[%emt 0:05:12]} 16. Ne3 {[%emt 0:04:17]} Be6 {[%emt 0:04:19]} 17. Nd5 {[%emt 0:18:26]} Bxd5 {[%emt 0:01:47]} 18. Qxd5 {[%emt 0:00:16]} Qe6 {[%emt 0:01:12]} 19. Qxe6+ {[%emt 0:01:17]} fxe6 {[%emt 0:00:04]} 20. Bb5 {[%emt 0:00:51]} Ra8 {[%emt 0:01:15]} 21. Ke2 {[%emt 0:03:32]} Ke7 {[%emt 0:01:28]} 22. Bxc6 {[%emt 0:00:55]} bxc6 {[%emt 0:00:06]} 23. b4 {[%emt 0:01:51]} d5 {[%emt 0:04:10]} 24. a3 {[%emt 0:01:40]} Kd6 {[%emt 0:01:13]} 25. Rhf1 {[%emt 0:01:44]} Raf8 {[%emt 0:03:23]} 26. g3 {[%emt 0:01:11]} h5 {[%emt 0:03:47]} 27. h4 {[%emt 0:07:05]} Rhg8 {[%emt 0:01:34]} 28. Rg1 {[%emt 0:00:29]} Rf7 {[%emt 0:01:59]} 29. Raf1 {[%emt 0:00:27]} Rfg7 {[%emt 0:01:58]} 30. Kf2 {[%emt 0:01:24]} d4 {[%emt 0:09:08]} 31. cxd4 {[%emt 0:02:39]} exd4 {[%emt 0:00:06]} 32. f4 {[%emt 0:01:56]} e5 {[%emt 0:01:32]} 33. fxe5+ {[%emt 0:00:32]} Kxe5 {[%emt 0:00:06]} 34. Rc1 {[%emt 0:02:56]} Rf8+ {[%emt 0:02:11]} 35. Kg2 {[%emt 0:01:16]} Kd6 {[%emt 0:04:04]} 36. Rc5 {[%emt 0:01:47]} Rgf7 {[%emt 0:00:52]} 37. Rd1 {[%emt 0:01:36]} Rf2+ {[%emt 0:01:18]} 38. Kg1 {[%emt 0:02:29]} R2f3 {[%emt 0:01:14]} 39. Rxd4+ {[%emt 0:00:15]} Kc7 {[%emt 0:00:05]} 40. Kg2 {[%emt 0:00:52]} Rxa3 {[%emt 0:01:16]} 41. Rdc4 {[%emt 0:01:26]} Rg8 {[%emt 0:03:45]} 42. Rxc6+ {[%emt 0:00:19]} Kb7 {[%emt 0:00:17]} 43. Rc7+ {[%emt 0:00:21]} Kb6 {[%emt 0:01:07]} 44. R7c6+ {[%emt 0:00:06]} Kb7 {[%emt 0:00:07]} 45. Rc7+ {[%emt 0:00:05]} Kb6 {[%emt 0:00:13]} 1/2-1/2